Cogmind - Beta 12 @@@ ROGUE MODE // 2023.03.26 @ 02:35:15 Player: Rainynight Result: Destroyed by L-31 Rogue with Katana Performance ------------- Evolutions (1) 500 Regions Visited (3) 600 Robots Destroyed (1) 5 Value Destroyed (34) 34 Prototype IDs (0) 0 Alien Tech Used (0) 0 Bonus (-8005) -8005 TOTAL SCORE: -6866 Bonus ------- Devolution -10500 Fragile Parts 250 No Salvage 284 Pure Core 511 Scavenger 1000 Simple Hacker 200 Trapped 250 Cogmind --------- Core Integrity 0/800 Matter 263/300 Energy 100/100 System Corruption 3% Temperature Cool (0) Movement Core (50) Location -9/Mines Parts ------- > --- POWER (2) -------- (None) > --- PROPULSION (5) --- (None) > --- UTILITY (7) ------ (None) > --- WEAPON (5) ------- (None) > --- INVENTORY (0) ---- (None) Peak State ------------ None Favorites ----------- Power None Propulsion None Utility None Weapon None Build | -11 -10 -9 -9 ------- Run | Jun Mat Mat Min Slots Evolved -1 | . . -1 . Power . | . . . . Propulsion -1 | . . -1 . Utility . | . . . . Weapon . | . . . . Parts Attached . | . . . . Power . | . . . . Engine . | . . . . Core . | . . . . Reactor . | . . . . Propulsion . | . . . . Treads . | . . . . Leg . | . . . . Wheel . | . . . . Hover . | . . . . Flight . | . . . . Utility . | . . . . Device . | . . . . Storage . | . . . . Processor . | . . . . Hackware . | . . . . Protection . | . . . . Artifact . | . . . . Weapon . | . . . . Energy Gun . | . . . . Energy Cannon . | . . . . Ballistic Gun . | . . . . Ballistic Cannon . | . . . . Launcher . | . . . . Special Weapon . | . . . . Impact Weapon . | . . . . Slashing Weapon . | . . . . Piercing Weapon . | . . . . Special Melee Weapon . | . . . . Unidentified Prototypes . | . . . . Parts Lost . | . . . . Power . | . . . . Propulsion . | . . . . Utility . | . . . . Weapon . | . . . . Highest Loss Streak . | . . . . To Critical Strikes . | . . . . Average Slot Usage (%) . | . . . . Naked Turns 258 | . 128 47 83 Heaviest Build . | . . . . Greatest Support 3 | 3 3 3 3 Greatest Overweight (x) . | . . . . Average Overweight (x) . | . . . . Largest Inventory Capacity . | . . . . Average Capacity . | . . . . Most Carried . | . . . . Average Carried . | . . . . Final Capacity . | . . . . Final Carried . | . . . . Class Distribution -------------------- 100% | Mutant Dominant Class ---------------- Mutant | -10/Materials Mutant | -9/Materials Mutant | -9/Mines Resources | -11 -10 -9 -9 ----------- Run | Jun Mat Mat Min Matter Collected . | . . . . Remotely . | . . . . Salvage Created 50 | . 50 . . Parts . | . . . . Haulers Intercepted . | . . . . Recyclers Shooed . | . . . . Parts Field Recycled . | . . . . Retrieved Matter . | . . . . Parts Self-Destructed . | . . . . Prevented . | . . . . Kills | -11 -10 -9 -9 ------- Run | Jun Mat Mat Min Combat Hostiles Destroyed 1 | . 1 . . Melee 1 | . 1 . . Classes Destroyed 1 | . 1 . . Grunt 1 | . 1 . . Best Kill Streak 1 | . 1 . . Combat Bots Only 1 | . 1 . . Max Kills in Single Turn 1 | . 1 . . Gunslinging . | . . . . Exploded . | . . . . Melee 1 | . 1 . . Uniques/NPCs Destroyed . | . . . . Combat | -11 -10 -9 -9 -------- Run | Jun Mat Mat Min Damage Taken 1375 | . 562 97 716 Core 1375 | . 562 97 716 Absorbed by Shields . | . . . . Core Remaining (%) 64 | 100 29 . . Volleys Fired . | . . . . Largest . | . . . . Hottest . | . . . . Shots Fired . | . . . . Gun . | . . . . Cannon . | . . . . Launcher . | . . . . Special . | . . . . Kinetic . | . . . . Thermal . | . . . . Explosive . | . . . . Electromagnetic . | . . . . Robot Hit Streak . | . . . . Robot Miss Streak . | . . . . Penetration Max . | . . . . Secondary Targets . | . . . . Shots Hit Robots . | . . . . Core Hits 9 | . 3 . 6 Critical Kills . | . . . . Critical Parts Destroyed . | . . . . Critical Strikes . | . . . . Melee Attacks . | . . . . Impact . | . . . . Slashing . | . . . . Piercing . | . . . . Sneak Attacks . | . . . . Combat Hostiles . | . . . . Follow-up Attacks . | . . . . Damage Inflicted 161 | . 69 3 89 Guns . | . . . . Cannons . | . . . . Explosions . | . . . . Melee . | . . . . Ramming 161 | . 69 3 89 Kinetic . | . . . . Thermal . | . . . . Explosive . | . . . . Electromagnetic . | . . . . Impact . | . . . . Slashing . | . . . . Piercing . | . . . . Highest Corruption 8 | . 8 1 3 Average Corruption 2 | . 4 1 1 Corruption Purged . | . . . . Corruption Blocked . | . . . . Effects 2 | . 2 . . Message Errors 2 | . 2 . . Overload Shots . | . . . . Overflow Damage . | . . . . Projectiles . | . . . . Explosions . | . . . . Melee . | . . . . Knockbacks . | . . . . Impact . | . . . . Kinetic . | . . . . Secondary . | . . . . Self-Inflicted Damage 72 | . 31 1 40 Shots . | . . . . Rammed 51 | . 21 2 28 Targets Rammed 51 | . 21 2 28 Kicked . | . . . . Crushed . | . . . . Highest Temperature 4 | . 4 . . Average Temperature 4 | . 4 . . Received Heat Transfer 323 | . 237 18 68 Siege Activations . | . . . . Robots Corrupted . | . . . . Combat Hostiles . | . . . . Parts Fried . | . . . . Impact Corruptions . | . . . . Robots Melted . | . . . . Combat Hostiles . | . . . . Parts Melted . | . . . . Heat Transferred . | . . . . Parts Sabotaged . | . . . . Parts Stolen . | . . . . Parts Stripped . | . . . . Power Chain Reactions . | . . . . Missiles Intercepted . | . . . . Alert | -11 -10 -9 -9 ------- Run | Jun Mat Mat Min Peak Influence 136 | . 136 85 79 Initial 57 | . . 57 14 Average 26 | . 17 22 45 Maximum Alert Level . | . . . . Low Security (%) 100 | 100 100 100 100 Level 1 . | . . . . Level 2 . | . . . . Level 3 . | . . . . Level 4 . | . . . . Level 5 . | . . . . High Security . | . . . . Max Security . | . . . . Squads Dispatched 11 | . 7 4 . Investigation 9 | . 5 4 . Extermination . | . . . . Reinforcement 2 | . 2 . . Assault . | . . . . Garrison . | . . . . Intercept . | . . . . Searches Triggered . | . . . . Construction Impeded . | . . . . Haulers Reinforced . | . . . . Active Scanning Responses . | . . . . Cargo Convoy Interrupts . | . . . . Stealth | -11 -10 -9 -9 --------- Run | Jun Mat Mat Min Distress Signals 2 | . 1 1 . Communications Jammed . | . . . . Distress Signals . | . . . . Times Spotted 55 | . 20 10 25 Peak Tracking Total 20 | . 17 11 20 Tactical Retreats 3 | . 1 . 2 Traps | -11 -10 -9 -9 ------- Run | Jun Mat Mat Min Traps Triggered 11 | . 7 4 . Indirectly . | . . . . Trap Hack Attempts . | . . . . Triggered . | . . . . Disarmed . | . . . . Reprogrammed . | . . . . Reused . | . . . . Traps Extracted . | . . . . Installed . | . . . . Triggered . | . . . . Machines | -11 -10 -9 -9 ---------- Run | Jun Mat Mat Min Machines Disabled . | . . . . Max in Single Turn . | . . . . Machines Repaired . | . . . . Machines Sabotaged . | . . . . Overloaded Fab Kills . | . . . . Hacking | -11 -10 -9 -9 --------- Run | Jun Mat Mat Min Machines Accessed 6 | . 2 3 1 Terminals 6 | . 2 3 1 Fabricators . | . . . . Repair Stations . | . . . . Recycling Units . | . . . . Scanalyzers . | . . . . Garrison Access . | . . . . Total Hacks 20 | . 6 12 2 Successful 7 | . 1 5 1 Failed 13 | . 5 7 1 Catastrophic 3 | . 1 2 . Database Lockouts . | . . . . Manual . | . . . . Terminals 20 | . 6 12 2 Fabricators . | . . . . Repair Stations . | . . . . Recycling Units . | . . . . Scanalyzers . | . . . . Garrison Access . | . . . . Terminal Hacks 7 | . 1 5 1 Robot Analysis 2 | . 1 1 . Branch Access Points 1 | . . 1 . Terminal Index 1 | . . 1 . Unreport Threat 1 | . . 1 . Zone Layout 2 | . . 1 1 Fabricator Hacks . | . . . . Repair Station Hacks . | . . . . Recycling Unit Hacks . | . . . . Scanalyzer . | . . . . Garrison Access Hacks . | . . . . Unauthorized Hacks . | . . . . Terminals . | . . . . Fabricators . | . . . . Repair Stations . | . . . . Recycling Units . | . . . . Scanalyzers . | . . . . Garrison Access . | . . . . Data Cores Recovered . | . . . . Used . | . . . . Hacking Detections 6 | . 2 3 1 Full Trace Events 5 | . 2 3 . Feedback Events 1 | . 1 . . Corruption 1 | . 1 . . Feedback Blocked . | . . . . Robot Schematics Acquired . | . . . . Robots Built . | . . . . Authchips . | . . . . Time . | . . . . Total Robot Build Rating . | . . . . Part Schematics Acquired . | . . . . Parts Built . | . . . . Authchips . | . . . . Time . | . . . . Total Part Build Rating . | . . . . Parts Repaired . | . . . . Time . | . . . . Parts Recycled . | . . . . Recycled Matter . | . . . . Retrieved Matter . | . . . . Retrieved Components . | . . . . Parts Scanalyzed . | . . . . Part Schematics Acquired . | . . . . Parts Damaged . | . . . . Bothacking | -11 -10 -9 -9 ------------ Run | Jun Mat Mat Min Used RIF Installer . | . . . . Robots Hacked . | . . . . Non-combat . | . . . . Combat . | . . . . Robot Hacks Applied . | . . . . Relay Couplers Released . | . . . . Fabnet Peak Effective % . | . . . . Robots Rewired . | . . . . Allies Hacked . | . . . . Hacks Repelled . | . . . . Allies | -11 -10 -9 -9 -------- Run | Jun Mat Mat Min Total Allies 1 | . . . 1 Largest Group 1 | . . . 1 Highest-Rated Group 31 | . . . 31 Highest-Rated Ally 31 | . . . 31 Total Orders . | . . . . Ally Attacks 5 | . . . 5 Total Damage 42 | . . . 42 Kills 2 | . . . 2 Allies Corrupted . | . . . . Allies Melted . | . . . . Intel | -11 -10 -9 -9 ------- Run | Jun Mat Mat Min Robot Analysis Total 2 | . 1 1 . Derelict Logs Recovered 1 | . . . 1 Drone Launches . | . . . . Drone Recoveries . | . . . . Exploration | -11 -10 -9 -9 ------------- Run | Jun Mat Mat Min Turns Passed 267 | 9 128 47 83 Spaces Moved 410 | 18 192 90 110 Core 410 | 18 192 90 110 Treads . | . . . . Legs . | . . . . Wheels . | . . . . Hover . | . . . . Flight . | . . . . Fastest Speed 50 | 50 50 50 50 Average Speed 50 | 50 50 50 50 Slowest Speed 50 | 50 50 50 50 Overloaded Moves . | . . . . Propulsion Burnouts . | . . . . Robots Hopped . | . . . . Cave-ins Triggered . | . . . . Exploration Rate (%) 25 | 4 42 19 37 Regions Visited 3 Branch Regions 1 Pre-discovered Areas 1 | . . . 1 Known Exits Taken 1 | . . 1 . Unknown Exits Taken 2 | 1 1 . . Scrap Searched . | . . . . Spaces Dug . | . . . . Terrain Destroyed . | . . . . Melee . | . . . . Projectile . | . . . . AOE . | . . . . Terrain Rammed . | . . . . Walls Destroyed . | . . . . Machines Disabled . | . . . . Actions | -11 -10 -9 -9 --------- Run | Jun Mat Mat Min Total 469 | 17 223 91 138 Wait 11 | . 11 . . Move 407 | 17 191 89 110 Hop . | . . . . Pick Up . | . . . . Fast Attach . | . . . . Attach . | . . . . Detach . | . . . . Swap . | . . . . Drop . | . . . . Fire . | . . . . Melee . | . . . . Ram 51 | . 21 2 28 Kick . | . . . . Crush . | . . . . Escape Stasis . | . . . . Rewire . | . . . . Trap . | . . . . Miscellaneous . | . . . . Route ------- -11/Junkyard -10/Materials -9/Materials -9/Mines History --------- Turn | Location | Event 4 | -11/Junkyard | Discovered new exit (range 13) 10 | -11/Junkyard | Entered Materials 122 | -10/Materials | Core integrity fell below 50% 122 | -10/Materials | Discovered new exit (range 14) 138 | -10/Materials | Entered another Materials area 138 | -9/Materials | Devolved, losing 1 slot: Propulsion x-1 172 | -9/Materials | Identified exit to Mines 185 | -9/Materials | Entered Mines 229 | -9/Mines | Assembled infested the area 231 | -9/Mines | Learned location of Zion (-7) 238 | -9/Mines | Met a Derelict testing a Signal Generator 252 | -9/Mines | Core integrity fell below 50% 262 | -9/Mines | Core integrity fell below 20% 268 | -9/Mines | Destroyed by L-31 Rogue with Katana Last Messages --------------- assault force. 00244_ as-17654 destroyed. 00246_ Signal Generator broadcasts a burst of procedurally generated transmissions. 00246_ ALERT: Intercepting significant anomalous signal. Redirecting assault force. 00246_ Signal Generator's internal power supply exhausted. 00247_ Slammed into as-42921. 00247_ as-36553 destroyed. 00248_ 07-4LV(g) destroyed. 00248_ Slammed into as-59308. 00249_ Slammed into as-27262. 00252_ Slammed into as-07081. 00252_ Destabilizing: Core damaged (-32). 00253_ Slammed into as-94672. 00255_ Slammed into as-39073. 00256_ Slammed into as-76955. 00258_ Destabilizing: System corrupted (+2). 00259_ Slammed into as-55296. 00265_ Slammed into L-31 Rogue. Map ----- +----------------------------------------------------+ | ???????????????????????????????????????????? | | ???????????????????????????????????????????? | | ???????????????????????????????????????????? | | ???????????????????????????????????????????? | | ???????????????????????????????????????????? | | ???????????????????????????????????????????? | | ???????????????????????????????????????????? | | ???????????????????????????????????????????? | | ?????## ########### ### ???????? | | ??????# ##?????????## ???????? | | ??????# #??????????## ### ???????? | | ??????# #?????????## ##### ##?## ???????? | | ??????# #?????????# ##???# #???# ???????? | | ?????## ########### ##???# #???# ????? | | ????? #???# #???# ????? | | ????? #???# #???## ???## | | ?????#### ######### #???# #???## #?## | | ?????#??# #???##??# ###### #???# ## | | ?????#??###??####?## ### #???# | | ?????#?##########??####?# #####??## | | ?????#?#########????????# #?????## | | ?????#?#######??????##### ####### | | ?????#??#####??????## ## | | ?????##??####??????#T """ """ ### | | ????? #???##?????#### """ """ #?#### | | ????? ##?????????#l@gg""" """ #?????# | | ????? ##????????#a## #?????# | | ???# ##########a## """ """ #?????# | | ??# a ## """ """ #?????# ### | | ??# < ##### """ """ #####?# ##?# | | ??# #### #???# ### ##?# | | ??## ##??# #???# """ """ ## ##? | | ???## ##???# #???# """ """ ### #? | | ?????# ##????# #???# """ """ #?##### #? | | ?????####?????# #???# #?????## ##? | | ???????#####??# #???############??????####?? | | ??###### #### #??????????????????????????? | | ?## ## % ##?????????????????????????? | | ?# % % #?????????????????????????? | | ?# #?????????????????????????? | | ?## ## #?????????????????????????? | | ??#### ##### #?????????????????????????? | | ?????## #???## #????????????????????????? | | ??????## #????# #????????????????????????? | | ???????###????? #???????????????????????? | | ??????????????? #???????????????????????? | | ??????????????? ##???????????????????????? | | ???????????????####????????????????????????? | | ???????????????????????????????????????????? | | ???????????????????????????????????????????? | +----------------------------------------------------+ Best States ------------- Heat Dissipation 20 Energy Generation 5 Energy Capacity 100 Matter Stores 238 Matter Capacity 300 Sight Range 16 Terrain Scan Density 10 Evasion (%) 50 Item Schematics ----------------- None Robot Schematics ------------------ None Fabricated ------------ Nothing Alien Tech Used ----------------- None Achievements -------------- None Challenges ------------ Devolution Fragile Parts No Salvage Pure Core Scavenger Simple Hacker Trapped Game ------ Seed InsulatedChainRigger Manual? 0 Play Time 00:05:25 Cumulative 279.1 hours Start 2023.03.26 @ 02:31:19 End 2023.03.26 @ 02:35:15 Sessions 1 Manual Loads 0 Difficulty Rogue Special Mode None Game No. 253 Rogue 236 Adventurer 1 Explorer 16 Win Type - Total 16 Types 13/1/0/2/0/0/0/0/0 Lore% 74 Gallery% 80 Achievement% 72 Wizard Run 0 Options --------- ASCII 1 Keyboard 1 Movement Numpad Keybinds 1 Fullscreen 1 Font 18/X11 Map View 76x50 Tactical HUD 1 Map Filters NONE Filters NONE Steam 1 RUN: 5cf4f5f7-5cc6-4e52-89ae-dc131e478b42